Cogmind - Beta 16 --- EXPLORER MODE // 2026.01.17 @ 07:46:49 // Winter2019/RPGLIKE Player: Goose Result: Destroyed by 8R-AWN with 8R-AWN's Boregun Performance ------------- Evolutions (0) 0 Regions Visited (3) 600 Robots Destroyed (16) 80 Value Destroyed (287) 287 Prototype IDs (23) 460 Alien Tech Used (0) 0 Bonus (-893) -893 TOTAL SCORE: 534 Bonus ------- Aligned with FarCom 300 Friendly Fire -1193 Cogmind --------- Core Integrity 0/950 Matter 215/300 Energy 297/500 System Corruption 10% Temperature Cool (0) Movement Treading (160) Location -10/Exiles Parts ------- > --- POWER (1) -------- Ion Engine > --- PROPULSION (2) --- Light Treads Light Treads > --- UTILITY (4) ------ Targeting Computer Targeting Computer Cloak of Protection Light Armor Plating (fused) > --- WEAPON (3) ------- Latent Energy Streamer > --- INVENTORY (3) ---- AWS/Autocannon Peak State ------------ > --- POWER ------------ Ion Engine > --- PROPULSION ------- Light Treads Light Treads > --- UTILITY ---------- Targeting Computer Targeting Computer Cloak of Protection Light Armor Plating > --- WEAPON ----------- AWS/Autocannon > --- INVENTORY -------- (None) [Rating: 44] Favorites ----------- Power Ion Engine Engine Ion Engine Propulsion Light Treads Treads Light Treads Leg Aluminum Leg Utility Targeting Computer Device Cloak of Protection Storage Small Matter Pod Processor Targeting Computer Protection Light Armor Plating Weapon Assault Rifle Energy Gun Medium Laser Energy Cannon Latent Energy Streamer Ballistic Gun Assault Rifle Ballistic Cannon Light Cannon Launcher Grenade Launcher Special Weapon Mining Laser Slashing Weapon Mining Claw Build | -11 -10 -10 -10 ------- Run | Yrd Mat Min Exi Slots Evolved 6 | 5 1 . . Power . | . . . . Propulsion 1 | 1 . . . Utility 3 | 3 . . . Weapon 2 | 1 1 . . Parts Attached 26 | 11 9 1 5 Power 2 | 2 . . . Engine 2 | 2 . . . Core . | . . . . Reactor . | . . . . Propulsion 5 | 2 1 . 2 Treads 3 | 2 1 . . Leg 2 | . . . 2 Wheel . | . . . . Hover . | . . . . Flight . | . . . . Utility 9 | 4 3 1 1 Device 3 | . 2 . 1 Storage 1 | . . 1 . Processor 2 | 2 . . . Hackware . | . . . . Protection 3 | 2 1 . . Artifact . | . . . . Weapon 10 | 3 5 . 2 Energy Gun 2 | 2 . . . Energy Cannon 2 | . 1 . 1 Ballistic Gun 1 | 1 . . . Ballistic Cannon 2 | . 1 . 1 Launcher 1 | . 1 . . Special Weapon 1 | . 1 . . Impact Weapon . | . . . . Slashing Weapon 1 | . 1 . . Piercing Weapon . | . . . . Special Melee Weapon . | . . . . Unidentified Prototypes . | . . . . Parts Lost 1 | . 1 . . Power . | . . . . Propulsion . | . . . . Utility 1 | . 1 . . Weapon . | . . . . Highest Loss Streak 1 | . 1 . . To Critical Strikes . | . . . . Average Backups 2 | . 2 3 1 Power . | . . . . Propulsion 1 | . 2 2 . Utility . | . . . . Weapon . | . . 1 . Tool/Special . | . . . . Unused Backups . | . . . . Power . | . . . . Propulsion . | . . . . Utility . | . . . . Weapon . | . . . . Tool/Special . | . . . . Average Slot Usage (%) 94 | . 98 99 85 Engine 10 | . 10 10 10 Treads 18 | . 20 20 16 Leg 1 | . . . 3 Device 7 | . 7 6 8 Storage 1 | . . 3 2 Processor 20 | . 20 20 20 Protection 10 | . 11 10 10 Energy Cannon 3 | . . . 7 Ballistic Gun 6 | . 9 10 1 Ballistic Cannon 6 | . 7 10 2 Slashing Weapon 5 | . 6 10 2 Peak Build Rating 44 | 9 10 10 44 Average Rating 14 | 5 9 9 24 On Entrance 7 | . 9 10 10 Avg Prop Armor Cover (%) . | . . . . Naked Turns . | . . . . Heaviest Build 76 | 11 17 16 76 Greatest Support 40 | 40 40 40 40 Greatest Overweight (x) 1 | . . . 1 Average Overweight (x) . | . . . . Largest Inventory Capacity 3 | 2 3 3 3 Average Capacity 2 | . 2 3 3 Most Carried 3 | 2 3 3 3 Average Carried 2 | . 2 3 2 Final Capacity 3 | 2 3 3 3 Final Carried 3 | 2 3 3 3 Class Distribution -------------------- 85% | Hacker-Mutant 14% | Hacker-Gunner Dominant Class ---------------- Hacker-Mutant | -10/Materials Hacker-Mutant | -10/Mines Hacker-Mutant | -10/Exiles Resources | -11 -10 -10 -10 ----------- Run | Yrd Mat Min Exi Matter Collected 649 | 219 370 60 . Remotely . | . . . . Salvage Created 250 | . 222 . 28 Parts 31 | . 29 2 . Haulers Intercepted . | . . . . Recyclers Shooed . | . . . . Parts Field Recycled . | . . . . Retrieved Matter . | . . . . Parts Self-Destructed . | . . . . Prevented . | . . . . Parts Restored . | . . . . Kills | -11 -10 -10 -10 ------- Run | Yrd Mat Min Exi Combat Hostiles Destroyed 13 | . 11 2 . Guns 6 | . 5 1 . Cannons 7 | . 6 1 . Classes Destroyed 4 | . 3 . 1 Watcher 3 | . 3 . . Swarmer 9 | . 9 . . Grunt 4 | . 2 2 . Assembled 6 | . . . 6 Best Kill Streak 3 | . 3 2 . Combat Bots Only 3 | . 3 2 . Max Kills in Single Turn 6 | . 1 1 6 Gunslinging . | . . . . Exploded . | . . . . Melee . | . . . . Uniques/NPCs Destroyed . | . . . . Combat | -11 -10 -10 -10 -------- Run | Yrd Mat Min Exi Hostile Shots Fired 147 | . 46 6 95 Missed 39 | . 14 1 24 Hits 108 | . 32 5 71 Projectile 108 | . 32 5 71 Critical Strikes 21 | . . . 21 Damage Taken 1239 | . 531 37 671 Core 957 | . 434 26 497 Absorbed by Shields . | . . . . Redirected to Core 767 | . 288 17 462 Ignored by Resistances 558 | . 118 24 416 Regen/Repaired (Parts) 21 | . 21 . . Core Remaining (%) 100 | 100 . . . Volleys Fired 31 | . 25 4 2 Largest 3 | . 3 2 1 Hottest 170 | . 170 50 60 Shots Fired 62 | . 51 8 3 Gun 33 | . 29 4 . Cannon 28 | . 21 4 3 Launcher . | . . . . Special 1 | . 1 . . Kinetic 54 | . 46 8 . Thermal 5 | . 5 . . Explosive . | . . . . Electromagnetic 3 | . . . 3 Robot Hit Streak 16 | . 16 9 11 Robot Miss Streak 1 | . 1 . . Penetration Max . | . . . . Secondary Targets . | . . . . Shots Hit Robots 43 | . 34 7 2 Core Hits 25 | . 16 3 6 Critical Kills 1 | . . 1 . Critical Parts Destroyed . | . . . . Critical Strikes 1 | . . 1 . Destroy 1 | . . 1 . Melee Attacks 10 | . 10 . . Impact . | . . . . Slashing 10 | . 10 . . Piercing . | . . . . Sneak Attacks . | . . . . Combat Hostiles . | . . . . Follow-up Attacks . | . . . . Damage Inflicted 1271 | . 529 104 638 Guns 300 | . 249 51 . Cannons 341 | . 280 53 8 Explosions 630 | . . . 630 Melee . | . . . . Ramming . | . . . . Kinetic 585 | . 481 104 . Thermal 48 | . 48 . . Explosive . | . . . . Electromagnetic 638 | . . . 638 Impact . | . . . . Slashing . | . . . . Piercing . | . . . . Highest Corruption 10 | . 1 1 10 Average Corruption 1 | . 1 1 1 Corruption Purged . | . . . . Corruption Blocked . | . . . . Effects 20 | . 5 6 9 Message Errors 3 | . . 2 1 Matter Fused 6 | . 1 2 3 Heat Flow Errors 3 | . . 1 2 Energy Discharges 3 | . 2 1 . Parts Fused 1 | . . . 1 Data Loss (minor) 2 | . 2 . . Data Loss (major) 1 | . . . 1 Misfires 1 | . . . 1 Overload Shots . | . . . . Overflow Damage 27 | . 11 . 16 Projectiles 11 | . 11 . . Explosions 16 | . . . 16 Melee . | . . . . Knockbacks 6 | . 6 . . Impact . | . . . . Kinetic 6 | . 6 . . Secondary . | . . . . Self-Inflicted Damage . | . . . . Shots . | . . . . Rammed . | . . . . Targets Rammed . | . . . . Kicked . | . . . . Crushed . | . . . . Highest Temperature 256 | . 85 256 213 Average Temperature 58 | . 16 86 84 Received Heat Transfer 96 | . 60 36 . Siege Activations . | . . . . Martial Activations . | . . . . Shielding Activations . | . . . . Robots Disrupted . | . . . . Combat Hostiles . | . . . . Robots Corrupted . | . . . . Combat Hostiles . | . . . . Parts Fried . | . . . . Impact Corruptions . | . . . . Robots Melted . | . . . . Combat Hostiles . | . . . . Parts Melted . | . . . . Heat Transferred 148 | . 148 . . Parts Sabotaged . | . . . . Parts Stolen . | . . . . Parts Stripped . | . . . . Power Chain Reactions . | . . . . Latent Energy Used 595 | . . . 595 LE Corruption 9 | . . . 9 Alert | -11 -10 -10 -10 ------- Run | Yrd Mat Min Exi Maximum Alert Level . | . . . . Low Security (%) 100 | 100 100 100 . Level 1 . | . . . . Level 2 . | . . . . Level 3 . | . . . . Level 4 . | . . . . Level 5 . | . . . . High Security . | . . . . Max Security . | . . . . Peak Influence 80 | . 80 50 . Initial . | . . . . Average 5 | . 7 2 . Influence Increases 455 | . 405 50 . Destroy 0b10 Robot/C 260 | . 220 40 . Destroy 0b10 Robot/NC 15 | . 15 . . Destroy Leader 66 | . 56 10 . Successful Hack 30 | . 30 . . Select Force Hacks 30 | . 30 . . Destroy Structure 9 | . 9 . . Lose Combat Pursuer 45 | . 45 . . Influence Decreases 455 | . 405 50 . Time Decay 453 | . 403 50 . Lost Part 2 | . 2 . . Squads Dispatched 1 | . 1 . . Investigation 1 | . 1 . . Extermination . | . . . . Reinforcement . | . . . . Assault . | . . . . Garrison . | . . . . Intercept . | . . . . Searches Triggered . | . . . . Construction Impeded . | . . . . Haulers Reinforced . | . . . . Active Scanning Responses . | . . . . Cargo Convoy Interrupts . | . . . . Stealth | -11 -10 -10 -10 --------- Run | Yrd Mat Min Exi Distress Signals . | . . . . Communications Jammed . | . . . . Distress Signals . | . . . . Times Spotted 24 | . 20 2 2 Peak Tracking Total 4 | . 4 2 3 Tactical Retreats 1 | . 1 . . Traps | -11 -10 -10 -10 ------- Run | Yrd Mat Min Exi Traps Triggered 1 | . 1 . . Indirectly . | . . . . Trap Hack Attempts . | . . . . Triggered . | . . . . Disarmed . | . . . . Reprogrammed . | . . . . Reused . | . . . . Traps Extracted . | . . . . Installed . | . . . . Triggered . | . . . . Machines | -11 -10 -10 -10 ---------- Run | Yrd Mat Min Exi Machines Disabled 8 | . . . 8 Max in Single Turn 4 | . . . 4 Machines Repaired . | . . . . Machines Dismantled . | . . . . Machines Sabotaged . | . . . . Overloaded Fab Kills . | . . . . Hacking | -11 -10 -10 -10 --------- Run | Yrd Mat Min Exi Machines Accessed 16 | . 11 . 5 Terminals 8 | . 8 . . Fabricators . | . . . . Repair Stations 1 | . 1 . . Recycling Units 2 | . 2 . . Scanalyzers . | . . . . Garrison Access . | . . . . Total Hacks 78 | . 28 . 50 Successful 68 | . 18 . 50 Failed 10 | . 10 . . Catastrophic . | . . . . Database Lockouts . | . . . . Manual 22 | . 17 . 5 Terminals 20 | . 20 . . Fabricators . | . . . . Repair Stations 5 | . 5 . . Recycling Units 3 | . 3 . . Scanalyzers . | . . . . Garrison Access . | . . . . Terminal Hacks 57 | . 7 . 50 Record 52 | . 3 . 49 Branch Access Points 1 | . 1 . . Emergency Access Points 1 | . 1 . . Alert Level 1 | . 1 . . Locate Traps 1 | . 1 . . Proto ID Catalog 1 | . . . 1 Fabricator Hacks . | . . . . Repair Station Hacks 3 | . 3 . . Scan Component 2 | . 2 . . Repair 1 | . 1 . . Recycling Unit Hacks . | . . . . Scanalyzer . | . . . . Garrison Access Hacks . | . . . . Unauthorized Hacks 8 | . 8 . . Terminals 6 | . 6 . . Track 3 | . 3 . . Botnet 3 | . 3 . . Fabricators . | . . . . Repair Stations . | . . . . Recycling Units 2 | . 2 . . Mask 1 | . 1 . . Tunnel 1 | . 1 . . Scanalyzers . | . . . . Garrison Access . | . . . . Data Cores Recovered . | . . . . Used . | . . . . Hacking Detections 7 | . 7 . . Full Trace Events 1 | . 1 . . Feedback Events . | . . . . Feedback Blocked . | . . . . Robot Schematics Acquired . | . . . . Robots Built . | . . . . Authchips . | . . . . Time . | . . . . Total Robot Build Rating . | . . . . Part Schematics Acquired . | . . . . Parts Built . | . . . . Authchips . | . . . . Time . | . . . . Total Part Build Rating . | . . . . Part Studies Acquired . | . . . . Parts Repaired 1 | . 1 . . Time 13 | . 13 . . Parts Recycled . | . . . . Recycled Matter . | . . . . Retrieved Matter . | . . . . Retrieved Components . | . . . . Parts Scanalyzed . | . . . . Part Schematics Acquired . | . . . . Parts Damaged . | . . . . Bothacking | -11 -10 -10 -10 ------------ Run | Yrd Mat Min Exi Used RIF Installer . | . . . . Robots Hacked . | . . . . Non-combat . | . . . . Combat . | . . . . Robot Hacks Applied . | . . . . Relay Couplers Released . | . . . . Fabnet Peak Effective % . | . . . . Robots Rewired . | . . . . Allies Hacked . | . . . . Hacks Repelled . | . . . . Allies | -11 -10 -10 -10 -------- Run | Yrd Mat Min Exi Total Allies . | . . . . Largest Group . | . . . . Highest-Rated Group . | . . . . Highest-Rated Ally . | . . . . Total Orders . | . . . . Ally Attacks . | . . . . Total Damage . | . . . . Kills . | . . . . Allies Corrupted . | . . . . Allies Melted . | . . . . Intel | -11 -10 -10 -10 ------- Run | Yrd Mat Min Exi Active Infowar (turns) 1956 | . 1316 582 58 Terrain 1164 | . 582 582 . Seismic 734 | . 734 . . Cloaking 58 | . . . 58 Robot Analysis Total . | . . . . Derelict Logs Recovered 1 | . . 1 . Drone Launches . | . . . . Drone Recoveries . | . . . . Exploration | -11 -10 -10 -10 ------------- Run | Yrd Mat Min Exi Turns Passed 4632 | 212 1814 965 1641 Spaces Moved 2752 | 124 995 579 1054 Core 9 | 9 . . . Treads 2499 | 115 995 579 810 Legs 244 | . . . 244 Wheels . | . . . . Hover . | . . . . Flight . | . . . . Fastest Speed 50 | 50 160 160 120 Average Speed 156 | 152 160 160 151 Slowest Speed 240 | 160 160 160 240 Overloaded Moves . | . . . . Propulsion Burnouts . | . . . . Robots Hopped . | . . . . Potential Cave-ins 4 | . . . 4 Cave-ins Triggered 1 | . 1 . . Exploration Rate (%) 74 | 6 97 98 95 Regions Visited 3 Branch Regions 2 Pre-discovered Areas 3 | . 1 1 1 Known Exits Taken 3 | 1 1 1 . Unknown Exits Taken . | . . . . Scrap Searched 1 | . . 1 . Spaces Dug 6 | . 6 . . Terrain Destroyed 131 | . 6 . 125 Melee 6 | . 6 . . Projectile . | . . . . AOE 125 | . . . 125 Terrain Rammed . | . . . . Walls Destroyed . | . . . . Machines Disabled . | . . . . Actions | -11 -10 -10 -10 --------- Run | Yrd Mat Min Exi Total 2990 | 144 1142 610 1094 Wait 131 | 6 94 24 7 Move 2749 | 123 994 578 1054 Hop . | . . . . Pick Up 3 | 2 1 . . Fast Attach 26 | 10 8 2 6 Attach 1 | . . . 1 Detach 4 | . . . 4 Swap 9 | 1 4 . 4 Drop 20 | 2 6 2 10 Fire 31 | . 25 4 2 Melee 10 | . 10 . . Ram . | . . . . Kick . | . . . . Crush . | . . . . Escape Stasis . | . . . . Rewire 6 | . . . 6 Trap . | . . . . Miscellaneous . | . . . . Route ------- -11/Scrapyard -10/Materials (discovered 5 exits: *Mat x3 / *Min / *Sub) -10/Mines (discovered 3 exits: *Mat x2 / *Exi) -10/Exiles (discovered 2 exits: *Min x2) History --------- Turn | Location | Event 21 | -11/Scrapyard | Identified exit to Materials 21 | -11/Scrapyard | Discovered exit to Materials (range 15) 119 | -11/Scrapyard | Upgraded with Utility slot (x1) 124 | -11/Scrapyard | Upgraded with Propulsion slot (x1) 128 | -11/Scrapyard | Upgraded with Utility slot (x2) 143 | -11/Scrapyard | Upgraded with Weapon slot (x1) 213 | -11/Scrapyard | Entered Materials 231 | -10/Materials | Upgraded with Weapon slot (x1) 273 | -10/Materials | Identified exit to Subcaves 273 | -10/Materials | Discovered exit to Subcaves (range 9) 399 | -10/Materials | Identified exit to Mines 399 | -10/Materials | Discovered exit to Mines (range 15) 518 | -10/Materials | Build established: Hacker-Gunner 666 | -10/Materials | Identified exit to Materials 666 | -10/Materials | Discovered exit to Materials (range 16) 1202 | -10/Materials | Build established: Hacker-Mutant 1281 | -10/Materials | Crushed by falling debris 1492 | -10/Materials | Discovered exit to Materials (range 12) 1619 | -10/Materials | Reached level 2 1776 | -10/Materials | Discovered exit to Materials (range 12) 1880 | -10/Materials | Repaired Assault Rifle 2027 | -10/Materials | Entered Mines 2078 | -10/Mines | Met a Derelict bent on vengeance 2138 | -10/Mines | Deemed a non-threat by the Exiles lab entrance 2139 | -10/Mines | Identified exit to Exiles 2139 | -10/Mines | Discovered exit to Exiles (range 5) 2309 | -10/Mines | Learned location of Mines (-9) 2331 | -10/Mines | Core integrity fell below 50% 2571 | -10/Mines | Discovered exit to Materials (range 11) 2599 | -10/Mines | Discovered exit to Materials (range 5) 2992 | -10/Mines | Entered Exiles 3063 | -10/Exiles | Identified exit to Mines 3063 | -10/Exiles | Discovered exit to Mines (range 14) 3100 | -10/Exiles | Met 8R-AWN 3127 | -10/Exiles | Met EX-HEX 3168 | -10/Exiles | Met EX-BIN 3185 | -10/Exiles | Aligned with FarCom system 3186 | -10/Exiles | Given EX-Vault access code 3263 | -10/Exiles | Opened EX-Vault 3297 | -10/Exiles | Found AWS/Autocannon 3305 | -10/Exiles | Found Latent Energy Streamer 3310 | -10/Exiles | Found Cloak of Protection 3424 | -10/Exiles | Warned to stay clear of 0b10 Research branches 3513 | -10/Exiles | Met EX-DEC 3526 | -10/Exiles | Learned location of Zion (-6) 3644 | -10/Exiles | Discovered exit to Mines (range 12) 3954 | -10/Exiles | Visited The Gauntlet 4527 | -10/Exiles | Attacked by the Exiles 4552 | -10/Exiles | Murdered 6 allies 4580 | -10/Exiles | Core integrity fell below 20% 4595 | -10/Exiles | System corruption reached 10% 4633 | -10/Exiles | Destroyed by 8R-AWN with 8R-AWN's Boregun Last Messages --------------- 04592_ as-90619 misfires. 04593_ Penetrated by HV Slug. 04593_ HV Slug penetrates Wall. 04593_ Penetrated by HV Slug. 04593_ HV Slug penetrates Wall. 04597_ Penetrated by HV Slug. 04597_ HV Slug penetrates Wall. 04597_ Penetrated by HV Slug. 04597_ HV Slug penetrates Wall. 04603_ Penetrated by HV Slug. 04603_ HV Slug penetrates Earth. 04603_ Penetrated by HV Slug. 04603_ HV Slug penetrates Earth. 04607_ Penetrated by HV Slug. 04607_ HV Slug penetrates Machine. 04607_ HV Slug penetrates Assembled Analyzer. 04609_ System corrupted: Lgt. Armor Plating fused. 04611_ HV Slug penetrates Wall. 04632_ as-90619 IFF system glitched. 04633_ Penetrated by HV Slug. Map ----- +----------------------------------------------------+ | ?????????????## #????????????????????????????? | | ??????????????# #????????????????????????????? | | ??????????????# #########????????????????????? | | ??????????????# ##""""""#????????????????????? | | ??????????????# ## """#????????????????????? | | ??????????????# X""#????????????????????? | | ??????????????# ## """#????????????????????? | | ??????######### ##""""""#????????????????????? | | ??????#""""""## #########????????????????????? | | ??????#"""" ## #????????????????????????????? | | ??????#""X" #????????????????????????????? | | ??????#" #????????????????????????????? | | ??????#" ## #????????????????????????????? | | ??????#""""""## #?#########??????????????????? | | ??????##"###### #?#"""""""#??????????????????? | | ?????? "?????# #?#"""""""#??????????????????? | | ?????""" ?????# #?#"""""""#??????????????????? | | ????#""" ????## ###"" """"#??????????????????? | | ??????"" ????#" """"#########??????????? | | ???????##????#" """# #??????????? | | ?????????????#" """;;";;;; #??????????? | | ?????????????#" """;; ; ##?????????? | | ######???????#" """;; ; #?????????? | | """#???????#" "" ; ##?????????? | | " """#???????## " #?????????? | | " #????????# @ " #??????????? | | " #????????#" "X" " #??????????? | | " "#????????#" """ #??????????? | | ""#????????#" """"""a ; ##??????????? | | " ""#???????##" ########;;; ; #???????????? | | # ###??????##"" #?????# ;;;;;; #???????????? | | # ###?######"" #?????## g ##???????????? | | # #"###""""""" ##???#?# # #????????????? | | """""" " "" ##??#"###;######????????????? | | "" """ " ##### """"##???????????? | | " " """"##??????????? | | " #??????????? | | "" #??????????? | | #??????????? | | ##?????????# | | ###???????# | | """""" ] #??????## | | ######""" / #????### | | ""##????#####""" "" ??# | | """##?????????##""" "" ## | | """##???????????#"""" """ | | ""#???????????##"" | | ########??####"""" | | ## ####""" "" | | """" " ""# | +----------------------------------------------------+ Best States ------------- Heat Dissipation 25 Energy Generation 10 Energy Capacity 500 Matter Stores 350 Matter Capacity 350 Sight Range 16 Terrain Scan Range 14 Terrain Scan Density 10 Cloak Strength 5 Armor Coverage 150 Resistance: KI 35 Resistance: TH 35 Resistance: EX 35 Resistance: EM 35 Resistance: I 35 Resistance: S 35 Resistance: P 35 Power Shielding 33 Utility Shielding 33 Evasion (%) 55 Targeting Accuracy 10 Recoil Reduction 2 Offensive Hacking 20 Item Schematics ----------------- None Robot Schematics ------------------ None Fabricated ------------ Nothing Repaired ---------- Assault Rifle | 79% | -10/Materials Studied --------- None Alien Tech Used ----------------- None Achievements -------------- Backstab Collateral Damage My Bad Sixth Sense Challenges ------------ None RPGLIKE | -11 -10 -10 -10 --------- Run | Yrd Mat Min Exi Levels Raised 1 | . 1 . . XP Earned 8730 | 6000 1630 750 350 XP Spent 7335 | 4150 1850 . 1335 Upgrades 21 | 7 8 . 6 Propulsion Slot 1 | 1 . . . Utility Slot 3 | 3 . . . Weapon Slot 2 | 1 1 . . Core Integrity 7 | . 6 . 1 Energy Storage 5 | . . . 5 Inventory Capacity 3 | 2 1 . . Protomatter Created 205 | . 48 82 75 Protomatter Decayed 111 | . 30 36 45 Game ------ Seed HugeRelaySlayer Manual? 0 Play Time 01:26:55 Cumulative 264.7 hours Start 2025.12.23 @ 09:15:05 End 2026.01.17 @ 07:46:49 Sessions 13 Manual Loads 0 Difficulty Explorer Special Mode Winter2019/RPGLIKE Game No. 14 Rogue 5 Adventurer 0 Explorer 9 Win Type - Total 0 Types 0/0/0/0/0/0/0/0/0/0 Lore% 30 Gallery% 39 Achievement% 29 Wizard Run 0 Options --------- Layout 0 ASCII 0 Keyboard 0 Movement Mouse Keybinds 0 Fullscreen 2 Font 18/X11 Map View 38x25 Zoom Use 81% Tactical HUD 1 Map Filters NONE Filters NONE Steam 1 RUN: a0a230b7-738a-4d24-8077-d82378791b07